[Event "Titled Tuesday Blitz April 18 Late 2023"]
[White "Jodorcovsky Werjivker, Paulo"]
[Black "Tarnowska, Aleksandra"]
[WhiteFideId "3700305"]
[BlackFideId "1180967"]
[WhiteElo "2120"]
[BlackElo "1776"]
[Result "1-0"]
[Round "03"]
[TimeControl "180+2"]
[Date "2023.04.18"]
[WhiteClock "0:00:04"]
[BlackClock "0:00:18"]

1. e4 {[%clk 0:02:45]}  c5 {[%clk 0:03:00]} 2. Nc3 {[%clk 0:02:44]}  a6 {[%clk 0:02:59]} 3. g3 {[%clk 0:02:43]}  b5 {[%clk 0:02:59]} 4. Bg2 {[%clk 0:02:43]}  b4 {[%clk 0:03:00]} 5. Na4 {[%clk 0:02:32]}  d6 {[%clk 0:02:42]} 6. b3 {[%clk 0:02:26]}  Bb7 {[%clk 0:02:40]} 7. Ne2 {[%clk 0:01:53]}  Nf6 {[%clk 0:02:37]} 8. d3 {[%clk 0:01:42]}  g6 {[%clk 0:02:24]} 9. O-O {[%clk 0:01:38]}  Qc7 {[%clk 0:02:24]} 10. f4 {[%clk 0:01:30]}  Nbd7 {[%clk 0:02:19]} 11. Nb2 {[%clk 0:01:27]}  Bg7 {[%clk 0:02:16]} 12. Rb1 {[%clk 0:01:26]}  h5 {[%clk 0:02:11]} 13. h3 {[%clk 0:01:25]}  Nb6 {[%clk 0:01:57]} 14. Nc4 {[%clk 0:01:23]}  Nxc4 {[%clk 0:01:56]} 15. bxc4 {[%clk 0:01:24]}  a5 {[%clk 0:01:56]} 16. a3 {[%clk 0:01:19]}  Nd7 {[%clk 0:01:54]} 17. Qd2 {[%clk 0:01:14]}  Bc6 {[%clk 0:01:28]} 18. c3 {[%clk 0:00:58]}  bxc3 {[%clk 0:01:20]} 19. Nxc3 {[%clk 0:00:58]}  a4 {[%clk 0:01:18]} 20. Bb2 {[%clk 0:00:52]}  O-O {[%clk 0:01:16]} 21. Ba1 {[%clk 0:00:45]}  Rfb8 {[%clk 0:01:16]} 22. Nd5 {[%clk 0:00:27]}  Bxd5 {[%clk 0:01:11]} 23. Bxg7 {[%clk 0:00:18]}  Kxg7 {[%clk 0:01:10]} 24. exd5 {[%clk 0:00:18]}  Nf6 {[%clk 0:01:06]} 25. Qc3 {[%clk 0:00:16]}  Rb7 {[%clk 0:01:02]} 26. g4 {[%clk 0:00:16]}  hxg4 {[%clk 0:00:59]} 27. hxg4 {[%clk 0:00:17]}  Kg8 {[%clk 0:00:58]} 28. Rxb7 {[%clk 0:00:17]}  Qxb7 {[%clk 0:00:58]} 29. g5 {[%clk 0:00:17]}  Nh5 {[%clk 0:00:53]} 30. f5 {[%clk 0:00:18]}  gxf5 {[%clk 0:00:37]} 31. Rxf5 {[%clk 0:00:11]}  Qb1+ {[%clk 0:00:31]} 32. Rf1 {[%clk 0:00:10]}  Qb3 {[%clk 0:00:31]} 33. Qd2 {[%clk 0:00:10]}  Qxa3 {[%clk 0:00:27]} 34. Qf2 {[%clk 0:00:08]}  Rf8 {[%clk 0:00:24]} 35. Qf3 {[%clk 0:00:08]}  Ng7 {[%clk 0:00:23]} 36. Re1 {[%clk 0:00:08]}  Qc3 {[%clk 0:00:17]} 37. Rxe7 {[%clk 0:00:07]}  Qc1+ {[%clk 0:00:18]} 38. Kh2 {[%clk 0:00:05]}  Qxg5 {[%clk 0:00:18]} 39. Re4 {[%clk 0:00:05]}  a3 {[%clk 0:00:17]} 40. Rg4 {[%clk 0:00:05]}  Qh6+ {[%clk 0:00:17]} 41. Bh3 {[%clk 0:00:05]}  a2 {[%clk 0:00:17]} 42. Qf1 {[%clk 0:00:06]}  Ra8 {[%clk 0:00:17]} 43. Qa1 {[%clk 0:00:05]}  Qd2+ {[%clk 0:00:18]} 44. Rg2 {[%clk 0:00:05]}  Qxd3 {[%clk 0:00:18]} 45. Qxg7# {[%clk 0:00:04]} 1-0


[Site "https://www.chess.com"]

[Event "Titled Tuesday Blitz April 18 Late 2023"]
[White "Barria Santos, Jose Guilherme"]
[Black "Ozalp, Burak"]
[WhiteFideId "1939300"]
[BlackFideId "6314210"]
[WhiteElo "2266"]
[BlackElo "2106"]
[Result "0-1"]
[Round "03"]
[TimeControl "180+2"]
[Date "2023.04.18"]
[WhiteClock "0:00:30"]
[BlackClock "0:01:12"]

1. e4 {[%clk 0:03:00]}  c6 {[%clk 0:02:52]} 2. d4 {[%clk 0:03:00]}  d5 {[%clk 0:02:53]} 3. Nc3 {[%clk 0:03:00]}  dxe4 {[%clk 0:02:51]} 4. Nxe4 {[%clk 0:03:01]}  Nd7 {[%clk 0:02:48]} 5. Bc4 {[%clk 0:03:00]}  Ngf6 {[%clk 0:02:46]} 6. Ng5 {[%clk 0:03:00]}  e6 {[%clk 0:02:43]} 7. Qe2 {[%clk 0:03:00]}  Nb6 {[%clk 0:02:41]} 8. Bb3 {[%clk 0:03:01]}  Qc7 {[%clk 0:02:32]} 9. N1f3 {[%clk 0:02:32]}  Bd6 {[%clk 0:02:28]} 10. Ne5 {[%clk 0:02:27]}  Bxe5 {[%clk 0:02:28]} 11. dxe5 {[%clk 0:02:27]}  Nfd5 {[%clk 0:02:26]} 12. Bd2 {[%clk 0:02:15]}  h6 {[%clk 0:02:25]} 13. Nf3 {[%clk 0:02:15]}  c5 {[%clk 0:02:19]} 14. Bxd5 {[%clk 0:02:01]}  Nxd5 {[%clk 0:02:18]} 15. O-O {[%clk 0:02:01]}  Bd7 {[%clk 0:02:17]} 16. Rfd1 {[%clk 0:02:00]}  Bc6 {[%clk 0:02:17]} 17. c4 {[%clk 0:01:56]}  Ne7 {[%clk 0:02:14]} 18. Bc3 {[%clk 0:01:46]}  O-O {[%clk 0:02:10]} 19. Qe3 {[%clk 0:01:39]}  b6 {[%clk 0:02:03]} 20. Nh4 {[%clk 0:01:36]}  Ng6 {[%clk 0:01:52]} 21. Nxg6 {[%clk 0:01:35]}  fxg6 {[%clk 0:01:53]} 22. Qg3 {[%clk 0:01:35]}  Kh7 {[%clk 0:01:43]} 23. Rd6 {[%clk 0:01:35]}  Rf5 {[%clk 0:01:40]} 24. Rad1 {[%clk 0:01:34]}  Rg5 {[%clk 0:01:38]} 25. Rxc6 {[%clk 0:00:56]}  Qxc6 {[%clk 0:01:34]} 26. Qh3 {[%clk 0:00:48]}  Rf8 {[%clk 0:01:29]} 27. Rd6 {[%clk 0:00:48]}  Qe4 {[%clk 0:01:26]} 28. g3 {[%clk 0:00:46]}  Rxf2 {[%clk 0:01:17]} 29. Kxf2 {[%clk 0:00:43]}  Rf5+ {[%clk 0:01:17]} 30. Kg1 {[%clk 0:00:33]}  Qb1+ {[%clk 0:01:13]} 31. Kg2 {[%clk 0:00:30]}  Qf1# {[%clk 0:01:12]} 0-1


[Site "https://www.chess.com"]

[Event "Titled Tuesday Blitz April 18 Late 2023"]
[White "Maranhao,Jose Renato Ruiz"]
[Black "Rodriguez Santiago, Jaime"]
[WhiteFideId "2135175"]
[BlackFideId "3100898"]
[WhiteElo "1970"]
[BlackElo "2025"]
[Result "0-1"]
[Round "03"]
[TimeControl "180+2"]
[Date "2023.04.18"]
[WhiteClock "0:00:47"]
[BlackClock "0:02:17"]

1. e4 {[%clk 0:02:57]}  c6 {[%clk 0:02:59]} 2. d4 {[%clk 0:02:57]}  d5 {[%clk 0:02:59]} 3. Nc3 {[%clk 0:02:53]}  dxe4 {[%clk 0:02:59]} 4. Nxe4 {[%clk 0:02:52]}  Nf6 {[%clk 0:03:00]} 5. Nxf6+ {[%clk 0:02:53]}  exf6 {[%clk 0:03:01]} 6. Nf3 {[%clk 0:02:53]}  Bd6 {[%clk 0:03:02]} 7. Bd3 {[%clk 0:02:52]}  O-O {[%clk 0:03:03]} 8. O-O {[%clk 0:02:52]}  Re8 {[%clk 0:03:04]} 9. c3 {[%clk 0:02:50]}  Nd7 {[%clk 0:03:04]} 10. Bc2 {[%clk 0:02:49]}  Nf8 {[%clk 0:03:04]} 11. b4 {[%clk 0:02:31]}  Bg4 {[%clk 0:03:00]} 12. Qd3 {[%clk 0:02:27]}  Qd7 {[%clk 0:02:56]} 13. a4 {[%clk 0:02:20]}  Rad8 {[%clk 0:02:54]} 14. Ba3 {[%clk 0:02:20]}  Bb8 {[%clk 0:02:51]} 15. b5 {[%clk 0:02:18]}  Qc7 {[%clk 0:02:44]} 16. Bxf8 {[%clk 0:02:16]}  Bxf3 {[%clk 0:02:42]} 17. Qxh7+ {[%clk 0:02:12]}  Kxf8 {[%clk 0:02:42]} 18. Rae1 {[%clk 0:01:36]}  Re6 {[%clk 0:02:21]} 19. Rxe6 {[%clk 0:00:49]}  fxe6 {[%clk 0:02:18]} 20. Qh8+ {[%clk 0:00:47]}  Kf7 {[%clk 0:02:17]} 0-1


[Site "https://www.chess.com"]

[Event "Titled Tuesday Blitz April 18 Late 2023"]
[White "Aqib Javaid Butt"]
[Black "Vasques, Antonio Pedro Freixial"]
[WhiteFideId "7801262"]
[BlackFideId "1908332"]
[WhiteElo "1659"]
[BlackElo "2212"]
[Result "1-0"]
[Round "03"]
[TimeControl "180+2"]
[Date "2023.04.18"]
[WhiteClock "0:00:51"]
[BlackClock "0:01:59"]

1. Nf3 {[%clk 0:03:00]}  Nf6 {[%clk 0:02:57]} 2. e3 {[%clk 0:03:01]}  g6 {[%clk 0:02:57]} 3. b3 {[%clk 0:03:01]}  Bg7 {[%clk 0:02:58]} 4. Bb2 {[%clk 0:03:02]}  O-O {[%clk 0:02:58]} 5. Be2 {[%clk 0:03:02]}  a5 {[%clk 0:02:59]} 6. O-O {[%clk 0:03:03]}  a4 {[%clk 0:03:00]} 7. c4 {[%clk 0:03:00]}  axb3 {[%clk 0:02:57]} 8. axb3 {[%clk 0:03:00]}  Rxa1 {[%clk 0:02:58]} 9. Bxa1 {[%clk 0:03:00]}  c6 {[%clk 0:02:59]} 10. Nc3 {[%clk 0:02:57]}  d5 {[%clk 0:02:59]} 11. d4 {[%clk 0:02:57]}  Na6 {[%clk 0:02:56]} 12. Bd3 {[%clk 0:02:51]}  Nb4 {[%clk 0:02:54]} 13. Bb1 {[%clk 0:02:51]}  Ne4 {[%clk 0:02:50]} 14. Nxe4 {[%clk 0:02:51]}  dxe4 {[%clk 0:02:51]} 15. Bxe4 {[%clk 0:02:47]}  c5 {[%clk 0:02:49]} 16. dxc5 {[%clk 0:02:43]}  Qc7 {[%clk 0:02:44]} 17. Bxg7 {[%clk 0:02:41]}  Kxg7 {[%clk 0:02:44]} 18. Qa1+ {[%clk 0:02:29]}  f6 {[%clk 0:02:44]} 19. Qc3 {[%clk 0:02:19]}  Na6 {[%clk 0:02:42]} 20. b4 {[%clk 0:02:16]}  Be6 {[%clk 0:02:35]} 21. Bd5 {[%clk 0:02:15]}  Bg4 {[%clk 0:02:29]} 22. h3 {[%clk 0:02:12]}  Bd7 {[%clk 0:02:26]} 23. Nd4 {[%clk 0:02:09]}  e5 {[%clk 0:02:23]} 24. Ne6+ {[%clk 0:02:06]}  Bxe6 {[%clk 0:02:23]} 25. Bxe6 {[%clk 0:02:07]}  Rd8 {[%clk 0:02:22]} 26. Bd5 {[%clk 0:02:07]}  Qd7 {[%clk 0:02:18]} 27. Qa3 {[%clk 0:02:00]}  Qc7 {[%clk 0:02:13]} 28. Rd1 {[%clk 0:01:52]}  h5 {[%clk 0:02:12]} 29. Bf3 {[%clk 0:01:42]}  Rxd1+ {[%clk 0:02:11]} 30. Bxd1 {[%clk 0:01:43]}  Qd7 {[%clk 0:02:11]} 31. Bf3 {[%clk 0:01:42]}  Qd2 {[%clk 0:02:11]} 32. b5 {[%clk 0:01:37]}  Nb4 {[%clk 0:02:10]} 33. Qa7 {[%clk 0:01:32]}  Nd3 {[%clk 0:02:08]} 34. Qxb7+ {[%clk 0:01:30]}  Kh6 {[%clk 0:02:09]} 35. Qf7 {[%clk 0:01:10]}  Qxf2+ {[%clk 0:02:06]} 36. Kh2 {[%clk 0:01:10]}  Ne1 {[%clk 0:02:06]} 37. Qxf6 {[%clk 0:01:07]}  Qxe3 {[%clk 0:02:03]} 38. h4 {[%clk 0:00:58]}  Kh7 {[%clk 0:02:02]} 39. Qf7+ {[%clk 0:00:50]}  Kh6 {[%clk 0:02:01]} 40. Qf8+ {[%clk 0:00:49]}  Kh7 {[%clk 0:02:01]} 41. Qe7+ {[%clk 0:00:48]}  Kh6 {[%clk 0:02:01]} 42. Qg5+ {[%clk 0:00:49]}  Qxg5 {[%clk 0:02:01]} 43. hxg5+ {[%clk 0:00:49]}  Kxg5 {[%clk 0:02:02]} 44. c6 {[%clk 0:00:50]}  Kf4 {[%clk 0:01:59]} 45. c7 {[%clk 0:00:50]}  Nxf3+ {[%clk 0:01:58]} 46. gxf3 {[%clk 0:00:51]}  Kxf3 {[%clk 0:01:59]} 47. c8=Q {[%clk 0:00:51]} 1-0


[Site "https://www.chess.com"]

[Event "Titled Tuesday Blitz April 18 Late 2023"]
[White "Govender, Kaedan"]
[Black "Skaric, Djuro"]
[WhiteFideId "14322072"]
[BlackFideId "934569"]
[WhiteElo "1963"]
[BlackElo "2282"]
[Result "0-1"]
[Round "03"]
[TimeControl "180+2"]
[Date "2023.04.18"]
[WhiteClock "0:01:07"]
[BlackClock "0:01:41"]

1. d4 {[%clk 0:03:00]}  d6 {[%clk 0:03:00]} 2. c4 {[%clk 0:03:00]}  g6 {[%clk 0:03:01]} 3. Nc3 {[%clk 0:03:00]}  Bg7 {[%clk 0:03:01]} 4. Nf3 {[%clk 0:03:00]}  Nf6 {[%clk 0:03:02]} 5. e4 {[%clk 0:03:01]}  O-O {[%clk 0:03:02]} 6. Be2 {[%clk 0:03:01]}  Nc6 {[%clk 0:03:02]} 7. O-O {[%clk 0:03:02]}  e5 {[%clk 0:03:02]} 8. d5 {[%clk 0:03:02]}  Ne7 {[%clk 0:03:02]} 9. h3 {[%clk 0:03:00]}  h6 {[%clk 0:03:03]} 10. Be3 {[%clk 0:02:59]}  Ne8 {[%clk 0:03:03]} 11. Qd2 {[%clk 0:02:59]}  Kh7 {[%clk 0:03:03]} 12. Ne1 {[%clk 0:02:58]}  f5 {[%clk 0:03:03]} 13. f4 {[%clk 0:02:57]}  exf4 {[%clk 0:03:02]} 14. Bxf4 {[%clk 0:02:57]}  g5 {[%clk 0:03:02]} 15. Be3 {[%clk 0:02:57]}  f4 {[%clk 0:03:02]} 16. Bd4 {[%clk 0:02:58]}  Ng6 {[%clk 0:02:59]} 17. e5 {[%clk 0:02:58]}  dxe5 {[%clk 0:02:58]} 18. Bf2 {[%clk 0:02:58]}  Bf5 {[%clk 0:02:57]} 19. Bd3 {[%clk 0:02:56]}  Nd6 {[%clk 0:02:56]} 20. Bxf5 {[%clk 0:02:55]}  Nxf5 {[%clk 0:02:55]} 21. Ne4 {[%clk 0:02:54]}  Nd4 {[%clk 0:02:50]} 22. Nf3 {[%clk 0:02:51]}  Nxf3+ {[%clk 0:02:49]} 23. gxf3 {[%clk 0:02:52]}  Qd7 {[%clk 0:02:49]} 24. Kh2 {[%clk 0:02:50]}  b6 {[%clk 0:02:48]} 25. Qd3 {[%clk 0:02:48]}  Qf5 {[%clk 0:02:46]} 26. Rg1 {[%clk 0:02:45]}  Rf7 {[%clk 0:02:43]} 27. Qe2 {[%clk 0:02:40]}  Bf6 {[%clk 0:02:40]} 28. d6 {[%clk 0:02:35]}  Rd8 {[%clk 0:02:36]} 29. dxc7 {[%clk 0:02:33]}  Rxc7 {[%clk 0:02:35]} 30. Rad1 {[%clk 0:02:27]}  Be7 {[%clk 0:02:26]} 31. Rxd8 {[%clk 0:02:26]}  Bxd8 {[%clk 0:02:26]} 32. Nd6 {[%clk 0:02:25]}  Qe6 {[%clk 0:02:22]} 33. Rd1 {[%clk 0:02:21]}  Be7 {[%clk 0:02:21]} 34. Ne4 {[%clk 0:02:06]}  Rxc4 {[%clk 0:02:17]} 35. Be1 {[%clk 0:02:01]}  Rc7 {[%clk 0:02:12]} 36. Bc3 {[%clk 0:01:56]}  Qxa2 {[%clk 0:02:08]} 37. Qd3 {[%clk 0:01:35]}  Qe6 {[%clk 0:02:02]} 38. Rd2 {[%clk 0:01:26]}  Kg7 {[%clk 0:02:00]} 39. Qd5 {[%clk 0:01:15]}  Qxd5 {[%clk 0:02:00]} 40. Rxd5 {[%clk 0:01:16]}  Kf7 {[%clk 0:01:58]} 41. Nf2 {[%clk 0:01:12]}  Ke6 {[%clk 0:01:56]} 42. Rd2 {[%clk 0:01:12]}  h5 {[%clk 0:01:54]} 43. Ne4 {[%clk 0:01:11]}  Nh4 {[%clk 0:01:53]} 44. Rd3 {[%clk 0:01:08]}  Rd7 {[%clk 0:01:48]} 45. Rxd7 {[%clk 0:01:08]}  Kxd7 {[%clk 0:01:48]} 46. Nd2 {[%clk 0:01:08]}  Ke6 {[%clk 0:01:46]} 47. Kg1 {[%clk 0:01:08]}  Kd5 {[%clk 0:01:42]} 48. Kf2 {[%clk 0:01:07]}  Bc5+ {[%clk 0:01:41]} 0-1


[Site "https://www.chess.com"]

[Event "Titled Tuesday Blitz April 18 Late 2023"]
[White "Eisa Mohmood, Alkhoori"]
[Black "Ardila, Oscar Humberto"]
[WhiteFideId "9316116"]
[BlackFideId "4404742"]
[WhiteElo "1310"]
[BlackElo "1918"]
[Result "0-1"]
[Round "03"]
[TimeControl "180+2"]
[Date "2023.04.18"]
[WhiteClock "0:02:19"]
[BlackClock "0:02:09"]

1. e4 {[%clk 0:03:00]}  e5 {[%clk 0:02:59]} 2. Nf3 {[%clk 0:03:00]}  Nf6 {[%clk 0:02:59]} 3. Nxe5 {[%clk 0:02:58]}  d6 {[%clk 0:02:58]} 4. Nf3 {[%clk 0:02:59]}  Nxe4 {[%clk 0:02:58]} 5. Nc3 {[%clk 0:02:59]}  Nxc3 {[%clk 0:02:58]} 6. dxc3 {[%clk 0:03:00]}  Be7 {[%clk 0:02:59]} 7. Be3 {[%clk 0:03:00]}  O-O {[%clk 0:02:59]} 8. Qd2 {[%clk 0:03:01]}  Nd7 {[%clk 0:03:00]} 9. O-O-O {[%clk 0:03:02]}  Nf6 {[%clk 0:03:01]} 10. Bd3 {[%clk 0:03:01]}  c5 {[%clk 0:03:01]} 11. h4 {[%clk 0:03:00]}  b5 {[%clk 0:03:01]} 12. Bxb5 {[%clk 0:02:56]}  Rb8 {[%clk 0:02:58]} 13. Bd3 {[%clk 0:02:55]}  Qa5 {[%clk 0:02:57]} 14. Kb1 {[%clk 0:02:40]}  Be6 {[%clk 0:02:45]} 15. c4 {[%clk 0:02:40]}  Qa3 {[%clk 0:02:44]} 16. b3 {[%clk 0:02:37]}  d5 {[%clk 0:02:15]} 17. cxd5 {[%clk 0:02:33]}  Nxd5 {[%clk 0:02:14]} 18. Ng5 {[%clk 0:02:24]}  Nb4 {[%clk 0:02:13]} 19. Bxh7+ {[%clk 0:02:18]}  Kh8 {[%clk 0:02:12]} 20. Nxe6 {[%clk 0:02:19]}  Qxa2+ {[%clk 0:02:09]} 0-1


[Site "https://www.chess.com"]

[Event "Titled Tuesday Blitz April 18 Late 2023"]
[White "Carlsen, Magnus"]
[Black "Popovic, Dusan"]
[WhiteFideId "1503014"]
[BlackFideId "927031"]
[WhiteElo "2852"]
[BlackElo "2573"]
[Result "1-0"]
[Round "04"]
[TimeControl "180+2"]
[Date "2023.04.18"]
[WhiteClock "0:01:36"]
[BlackClock "0:00:31"]

1. d4 {[%clk 0:03:00]}  Nf6 {[%clk 0:02:57]} 2. Bf4 {[%clk 0:02:57]}  g6 {[%clk 0:02:54]} 3. Nf3 {[%clk 0:02:49]}  Bg7 {[%clk 0:02:54]} 4. e3 {[%clk 0:02:49]}  O-O {[%clk 0:02:53]} 5. Be2 {[%clk 0:02:49]}  d6 {[%clk 0:02:54]} 6. O-O {[%clk 0:02:46]}  Nc6 {[%clk 0:02:54]} 7. h3 {[%clk 0:02:44]}  Nd7 {[%clk 0:02:46]} 8. Bh2 {[%clk 0:02:44]}  e5 {[%clk 0:02:46]} 9. a4 {[%clk 0:02:40]}  f5 {[%clk 0:02:43]} 10. Nc3 {[%clk 0:02:38]}  Kh8 {[%clk 0:02:41]} 11. a5 {[%clk 0:02:38]}  a6 {[%clk 0:02:39]} 12. Nd5 {[%clk 0:02:23]}  Ne7 {[%clk 0:02:10]} 13. dxe5 {[%clk 0:02:16]}  dxe5 {[%clk 0:02:06]} 14. Ng5 {[%clk 0:02:10]}  Nc5 {[%clk 0:01:56]} 15. Nc3 {[%clk 0:01:56]}  Qe8 {[%clk 0:01:41]} 16. Bc4 {[%clk 0:01:55]}  h6 {[%clk 0:01:34]} 17. Nf3 {[%clk 0:01:52]}  e4 {[%clk 0:01:28]} 18. Nd4 {[%clk 0:01:48]}  Nc6 {[%clk 0:00:58]} 19. Nd5 {[%clk 0:01:45]}  Nxd4 {[%clk 0:00:49]} 20. Nxc7 {[%clk 0:01:43]}  Qc6 {[%clk 0:00:47]} 21. exd4 {[%clk 0:01:41]}  Be6 {[%clk 0:00:35]} 22. Bxe6 {[%clk 0:01:38]}  Nxe6 {[%clk 0:00:35]} 23. d5 {[%clk 0:01:38]}  Qc4 {[%clk 0:00:31]} 24. Nxe6 {[%clk 0:01:36]} 1-0


[Site "https://www.chess.com"]

[Event "Titled Tuesday Blitz April 18 Late 2023"]
[White "Nakamura, Hikaru"]
[Black "Pichot, Alan"]
[WhiteFideId "2016192"]
[BlackFideId "110973"]
[WhiteElo "2885"]
[BlackElo "2573"]
[Result "1-0"]
[Round "04"]
[TimeControl "180+2"]
[Date "2023.04.18"]
[WhiteClock "0:01:00"]
[BlackClock "0:00:10"]

1. e4 {[%clk 0:03:00]}  e5 {[%clk 0:02:54]} 2. Bc4 {[%clk 0:02:58]}  Nc6 {[%clk 0:02:53]} 3. d3 {[%clk 0:02:58]}  Nf6 {[%clk 0:02:52]} 4. Nf3 {[%clk 0:02:58]}  Bc5 {[%clk 0:02:51]} 5. c3 {[%clk 0:02:59]}  O-O {[%clk 0:02:51]} 6. O-O {[%clk 0:02:57]}  d6 {[%clk 0:02:51]} 7. h3 {[%clk 0:02:56]}  a6 {[%clk 0:02:48]} 8. Re1 {[%clk 0:02:54]}  Ba7 {[%clk 0:02:49]} 9. a4 {[%clk 0:02:53]}  Be6 {[%clk 0:02:49]} 10. Nbd2 {[%clk 0:02:48]}  h6 {[%clk 0:02:48]} 11. b4 {[%clk 0:02:47]}  Re8 {[%clk 0:02:44]} 12. Bxe6 {[%clk 0:02:45]}  Rxe6 {[%clk 0:02:43]} 13. Qc2 {[%clk 0:02:44]}  Ne7 {[%clk 0:02:41]} 14. d4 {[%clk 0:02:40]}  Ng6 {[%clk 0:02:41]} 15. b5 {[%clk 0:02:25]}  Qd7 {[%clk 0:02:30]} 16. d5 {[%clk 0:02:23]}  Ree8 {[%clk 0:02:29]} 17. c4 {[%clk 0:02:23]}  c6 {[%clk 0:02:19]} 18. dxc6 {[%clk 0:02:18]}  bxc6 {[%clk 0:02:20]} 19. bxa6 {[%clk 0:02:19]}  Nf4 {[%clk 0:01:56]} 20. Nf1 {[%clk 0:01:50]}  Ne6 {[%clk 0:01:56]} 21. Bb2 {[%clk 0:01:42]}  Bc5 {[%clk 0:01:53]} 22. N1d2 {[%clk 0:01:42]}  Rxa6 {[%clk 0:01:47]} 23. Nb3 {[%clk 0:01:42]}  Rea8 {[%clk 0:01:44]} 24. a5 {[%clk 0:01:40]}  Qb7 {[%clk 0:01:34]} 25. Red1 {[%clk 0:01:35]}  Nxe4 {[%clk 0:01:29]} 26. Rf1 {[%clk 0:01:11]}  Rb8 {[%clk 0:00:35]} 27. Qxe4 {[%clk 0:01:07]}  Qxb3 {[%clk 0:00:34]} 28. Bxe5 {[%clk 0:01:08]}  Rb4 {[%clk 0:00:16]} 29. Nd2 {[%clk 0:01:03]}  d5 {[%clk 0:00:10]} 30. Qf5 {[%clk 0:01:00]} 1-0


[Site "https://www.chess.com"]

[Event "Titled Tuesday Blitz April 18 Late 2023"]
[White "Caruana, Fabiano"]
[Black "Hansen, Eric"]
[WhiteFideId "2020009"]
[BlackFideId "2606771"]
[WhiteElo "2837"]
[BlackElo "2561"]
[Result "1-0"]
[Round "04"]
[TimeControl "180+2"]
[Date "2023.04.18"]
[WhiteClock "0:00:10"]
[BlackClock "0:00:02"]

1. e4 {[%clk 0:03:00]}  e5 {[%clk 0:02:58]} 2. Nf3 {[%clk 0:03:00]}  Nc6 {[%clk 0:02:58]} 3. Bb5 {[%clk 0:03:00]}  a6 {[%clk 0:02:51]} 4. Ba4 {[%clk 0:03:00]}  Nf6 {[%clk 0:02:52]} 5. d3 {[%clk 0:02:59]}  d6 {[%clk 0:02:42]} 6. c3 {[%clk 0:02:57]}  Bd7 {[%clk 0:02:39]} 7. O-O {[%clk 0:02:57]}  g6 {[%clk 0:02:36]} 8. h3 {[%clk 0:02:56]}  Bg7 {[%clk 0:02:37]} 9. Be3 {[%clk 0:02:55]}  O-O {[%clk 0:02:36]} 10. Nbd2 {[%clk 0:02:56]}  h6 {[%clk 0:02:27]} 11. Re1 {[%clk 0:02:54]}  Re8 {[%clk 0:02:26]} 12. Nf1 {[%clk 0:02:51]}  b5 {[%clk 0:02:22]} 13. Bc2 {[%clk 0:02:50]}  d5 {[%clk 0:02:15]} 14. Ng3 {[%clk 0:02:50]}  Be6 {[%clk 0:02:15]} 15. a4 {[%clk 0:02:44]}  Kh7 {[%clk 0:02:12]} 16. Qe2 {[%clk 0:02:02]}  dxe4 {[%clk 0:02:00]} 17. dxe4 {[%clk 0:02:00]}  Bc4 {[%clk 0:02:00]} 18. Qd2 {[%clk 0:02:00]}  Qe7 {[%clk 0:01:52]} 19. Qc1 {[%clk 0:01:56]}  Red8 {[%clk 0:01:37]} 20. Nd2 {[%clk 0:01:52]}  Be6 {[%clk 0:01:33]} 21. b4 {[%clk 0:01:48]}  Nd7 {[%clk 0:01:25]} 22. Nf5 {[%clk 0:01:44]}  Qf8 {[%clk 0:01:19]} 23. Nxg7 {[%clk 0:01:43]}  Qxg7 {[%clk 0:01:19]} 24. Nb3 {[%clk 0:01:39]}  Nb6 {[%clk 0:01:14]} 25. Nc5 {[%clk 0:01:38]}  Bc4 {[%clk 0:01:11]} 26. Rd1 {[%clk 0:01:23]}  Qf8 {[%clk 0:01:08]} 27. Rxd8 {[%clk 0:01:21]}  Nxd8 {[%clk 0:00:51]} 28. Qd2 {[%clk 0:01:20]}  Ne6 {[%clk 0:00:49]} 29. a5 {[%clk 0:01:12]}  Na4 {[%clk 0:00:33]} 30. Nxa4 {[%clk 0:01:07]}  Rd8 {[%clk 0:00:29]} 31. Qe1 {[%clk 0:01:04]}  bxa4 {[%clk 0:00:29]} 32. Bxa4 {[%clk 0:01:05]}  f5 {[%clk 0:00:27]} 33. Rd1 {[%clk 0:01:02]}  f4 {[%clk 0:00:26]} 34. Bc1 {[%clk 0:01:00]}  Rd6 {[%clk 0:00:10]} 35. Rxd6 {[%clk 0:00:58]}  cxd6 {[%clk 0:00:07]} 36. Bd1 {[%clk 0:00:57]}  Qe7 {[%clk 0:00:05]} 37. Bd2 {[%clk 0:00:52]}  Ng5 {[%clk 0:00:04]} 38. f3 {[%clk 0:00:49]}  Bb5 {[%clk 0:00:04]} 39. Bb3 {[%clk 0:00:45]}  Qc7 {[%clk 0:00:02]} 40. Qf2 {[%clk 0:00:45]}  Bc4 {[%clk 0:00:02]} 41. Qb6 {[%clk 0:00:44]}  Qc8 {[%clk 0:00:02]} 42. Ba4 {[%clk 0:00:31]}  Nf7 {[%clk 0:00:01]} 43. Qc6 {[%clk 0:00:28]}  Qe6 {[%clk 0:00:01]} 44. Be1 {[%clk 0:00:24]}  Kg7 {[%clk 0:00:02]} 45. Bh4 {[%clk 0:00:22]}  g5 {[%clk 0:00:02]} 46. Bf2 {[%clk 0:00:22]}  h5 {[%clk 0:00:03]} 47. Qd7 {[%clk 0:00:22]}  Qf6 {[%clk 0:00:03]} 48. b5 {[%clk 0:00:21]}  axb5 {[%clk 0:00:03]} 49. Bxb5 {[%clk 0:00:22]}  Bxb5 {[%clk 0:00:03]} 50. Qxb5 {[%clk 0:00:23]}  g4 {[%clk 0:00:04]} 51. a6 {[%clk 0:00:21]}  gxf3 {[%clk 0:00:04]} 52. a7 {[%clk 0:00:18]}  Qg6 {[%clk 0:00:04]} 53. Qf1 {[%clk 0:00:16]}  Qxe4 {[%clk 0:00:04]} 54. gxf3 {[%clk 0:00:17]}  Qa8 {[%clk 0:00:04]} 55. Qd3 {[%clk 0:00:13]}  Ng5 {[%clk 0:00:04]} 56. Kg2 {[%clk 0:00:14]}  h4 {[%clk 0:00:04]} 57. Bxh4 {[%clk 0:00:13]}  Nf7 {[%clk 0:00:02]} 58. Qf5 {[%clk 0:00:11]}  Qxa7 {[%clk 0:00:01]} 59. Bf6+ {[%clk 0:00:10]}  Kf8 {[%clk 0:00:02]} 60. Qc8+ {[%clk 0:00:10]} 1-0


[Site "https://www.chess.com"]